Cogmind - Beta 13 @@@ ROGUE MODE // 2024.04.18 @ 14:46:19 Player: ILikeVoltron Result: Destroyed by 0G-48P(R) with Subdweller Laser Performance ------------- Evolutions (0) 0 Regions Visited (2) 400 Robots Destroyed (12) 60 Value Destroyed (268) 268 Prototype IDs (1) 20 Alien Tech Used (0) 0 Bonus (0) 0 TOTAL SCORE: 748 Bonus ------- None Cogmind --------- Core Integrity 0/250 Matter 300/300 Energy 100/100 System Corruption 0% Temperature Cool (6) Movement Core (200) Ox3 Location -10/Subcaves Parts ------- > --- POWER (1) -------- (None) > --- PROPULSION (2) --- (None) > --- UTILITY (2) ------ Medium Storage Unit > --- WEAPON (2) ------- (None) > --- INVENTORY (10) --- Large Storage Unit Small Matter Pod (50) Structural Scanner Terrain Scanner Transport Network Coupler Targeting Computer Light Armor Plating Grenade Launcher Scrap Shield Fragment (48) Scrap Shield Fragment (47) Peak State ------------ > --- POWER ------------ Light Ion Engine > --- PROPULSION ------- Aluminum Leg Aluminum Leg > --- UTILITY ---------- Medium Storage Unit Light Armor Plating > --- WEAPON ----------- Improved Medium Laser Light Assault Rifle > --- INVENTORY -------- Ion Engine Aluminum Leg Aluminum Leg Large Storage Unit Small Matter Pod Structural Scanner Transport Network Coupler Assault Rifle Grenade Launcher Grenade Launcher [Rating: 10] Favorites ----------- Power Ion Engine Engine Ion Engine Propulsion Aluminum Leg Leg Aluminum Leg Utility Medium Storage Unit Device Disposable Heat Sink Storage Medium Storage Unit Protection Light Armor Plating Weapon Light Assault Rifle Energy Gun Improved Medium Laser Ballistic Gun Light Assault Rifle Build | -11 -10 -10 ------- Run | Yrd Mat Sub Slots Evolved . | . . . Power . | . . . Propulsion . | . . . Utility . | . . . Weapon . | . . . Parts Attached 11 | . 9 2 Power 2 | . 2 . Engine 2 | . 2 . Core . | . . . Reactor . | . . . Propulsion 1 | . 1 . Treads . | . . . Leg 1 | . 1 . Wheel . | . . . Hover . | . . . Flight . | . . . Utility 5 | . 4 1 Device 3 | . 2 1 Storage 1 | . 1 . Processor . | . . . Hackware . | . . . Protection 1 | . 1 . Artifact . | . . . Weapon 3 | . 2 1 Energy Gun 2 | . 2 . Energy Cannon . | . . . Ballistic Gun 1 | . . 1 Ballistic Cannon . | . . . Launcher . | . . . Special Weapon . | . . . Impact Weapon . | . . . Slashing Weapon . | . . . Piercing Weapon . | . . . Special Melee Weapon . | . . . Unidentified Prototypes 1 | . 1 . Parts Lost 8 | . 2 6 Power 2 | . 1 1 Propulsion 3 | . 1 2 Utility 1 | . . 1 Weapon 2 | . . 2 Highest Loss Streak 4 | . 2 4 To Critical Strikes . | . . . Average Slot Usage (%) 88 | . 97 68 Engine 10 | . 14 . Leg 23 | . 28 13 Device 6 | . 3 13 Storage 14 | . 14 14 Protection 5 | . 8 . Energy Gun 13 | . 13 13 Ballistic Gun 13 | . 14 13 Naked Turns . | . . . Heaviest Build 22 | 10 22 20 Greatest Support 20 | 20 20 20 Greatest Overweight (x) 5 | . 1 5 Average Overweight (x) . | . . 1 Largest Inventory Capacity 10 | . 10 10 Average Capacity 9 | . 9 10 Most Carried 10 | . 10 10 Average Carried 9 | . 8 9 Final Capacity 10 | 8 10 10 Final Carried 10 | 6 8 10 Class Distribution -------------------- 100% | Mutant Dominant Class ---------------- Mutant | -10/Materials Mutant | -10/Subcaves Resources | -11 -10 -10 ----------- Run | Yrd Mat Sub Matter Collected 399 | 200 164 35 Remotely . | . . . Salvage Created 438 | . 346 92 Parts 29 | . 22 7 Haulers Intercepted 2 | . 2 . Recyclers Shooed . | . . . Parts Field Recycled . | . . . Retrieved Matter . | . . . Parts Self-Destructed 3 | . . 3 Prevented . | . . . Kills | -11 -10 -10 ------- Run | Yrd Mat Sub Combat Hostiles Destroyed 9 | . 7 2 Guns 9 | . 7 2 Classes Destroyed 5 | . 4 1 Builder 1 | . 1 . Hauler 2 | . 2 . Swarmer 3 | . 3 . Grunt 4 | . 4 . Subdweller 2 | . . 2 Best Kill Streak 4 | . 4 2 Combat Bots Only 3 | . 3 2 Max Kills in Single Turn 1 | . 1 1 Gunslinging . | . . . Exploded . | . . . Melee . | . . . Uniques/NPCs Destroyed . | . . . Combat | -11 -10 -10 -------- Run | Yrd Mat Sub Hostile Shots Fired 106 | . 56 50 Missed 37 | . 21 16 Damage Taken 1166 | . 445 721 Core 269 | . 59 210 Absorbed by Shields . | . . . Core Remaining (%) 100 | 100 . . Volleys Fired 54 | . 41 13 Largest 2 | . 2 2 Hottest 76 | . 60 76 Shots Fired 107 | . 81 26 Gun 107 | . 81 26 Cannon . | . . . Launcher . | . . . Special . | . . . Kinetic 54 | . 41 13 Thermal 53 | . 40 13 Explosive . | . . . Electromagnetic . | . . . Robot Hit Streak 14 | . 5 14 Robot Miss Streak 5 | . 5 2 Penetration Max . | . . . Secondary Targets 2 | . 1 1 Max Gunslinging Chain 1 | . 1 1 Shots Hit Robots 69 | . 47 22 Core Hits 24 | . 19 5 Critical Kills 1 | . 1 . Critical Parts Destroyed . | . . . Critical Strikes 2 | . 1 1 Burn 1 | . . 1 Destroy 1 | . 1 . Melee Attacks . | . . . Impact . | . . . Slashing . | . . . Piercing . | . . . Sneak Attacks . | . . . Combat Hostiles . | . . . Follow-up Attacks . | . . . Damage Inflicted 763 | . 475 288 Guns 753 | . 475 278 Cannons . | . . . Explosions . | . . . Melee . | . . . Ramming 10 | . . 10 Kinetic 332 | . 242 90 Thermal 421 | . 233 188 Explosive . | . . . Electromagnetic . | . . . Impact . | . . . Slashing . | . . . Piercing . | . . . Highest Corruption . | . . . Average Corruption . | . . . Corruption Purged . | . . . Corruption Blocked . | . . . Overload Shots . | . . . Overflow Damage . | . . . Projectiles . | . . . Explosions . | . . . Melee . | . . . Knockbacks . | . . . Impact . | . . . Kinetic . | . . . Secondary . | . . . Self-Inflicted Damage . | . . . Shots . | . . . Rammed . | . . . Targets Rammed 2 | . . 2 Kicked 2 | . . 2 Crushed . | . . . Highest Temperature 266 | . 266 2 Average Temperature 98 | . 100 2 Received Heat Transfer 225 | . 123 102 Effects 1 | . 1 . Interference 1 | . 1 . Siege Activations . | . . . Robots Corrupted . | . . . Combat Hostiles . | . . . Parts Fried . | . . . Impact Corruptions . | . . . Robots Melted . | . . . Combat Hostiles . | . . . Parts Melted 1 | . . 1 Heat Transferred 1006 | . 525 481 Parts Sabotaged . | . . . Parts Stolen . | . . . Parts Stripped . | . . . Power Chain Reactions . | . . . Alert | -11 -10 -10 ------- Run | Yrd Mat Sub Peak Influence 269 | . 269 . Initial . | . . . Average 75 | . 75 . Maximum Alert Level 1 | . 1 . Low Security (%) 90 | . 90 . Level 1 9 | . 9 . Level 2 . | . . . Level 3 . | . . . Level 4 . | . . . Level 5 . | . . . High Security . | . . . Max Security . | . . . Squads Dispatched 1 | . 1 . Investigation . | . . . Extermination . | . . . Reinforcement 1 | . 1 . Assault . | . . . Garrison . | . . . Intercept . | . . . Searches Triggered . | . . . Construction Impeded . | . . . Haulers Reinforced . | . . . Active Scanning Responses . | . . . Cargo Convoy Interrupts . | . . . Stealth | -11 -10 -10 --------- Run | Yrd Mat Sub Distress Signals 1 | . 1 . Communications Jammed . | . . . Distress Signals . | . . . Times Spotted 26 | . 20 6 Peak Tracking Total 4 | . 4 4 Tactical Retreats 1 | . 1 . Traps | -11 -10 -10 ------- Run | Yrd Mat Sub Traps Triggered 2 | . 2 . Indirectly . | . . . Trap Hack Attempts . | . . . Triggered . | . . . Disarmed . | . . . Reprogrammed . | . . . Reused . | . . . Traps Extracted . | . . . Installed . | . . . Triggered . | . . . Machines | -11 -10 -10 ---------- Run | Yrd Mat Sub Machines Disabled . | . . . Max in Single Turn . | . . . Machines Repaired . | . . . Machines Dismantled . | . . . Machines Sabotaged . | . . . Overloaded Fab Kills . | . . . Hacking | -11 -10 -10 --------- Run | Yrd Mat Sub Machines Accessed 5 | . 5 . Terminals 5 | . 5 . Fabricators . | . . . Repair Stations . | . . . Recycling Units . | . . . Scanalyzers . | . . . Garrison Access . | . . . Total Hacks 8 | . 8 . Successful 2 | . 2 . Failed 6 | . 6 . Catastrophic . | . . . Database Lockouts . | . . . Manual . | . . . Terminals 8 | . 8 . Fabricators . | . . . Repair Stations . | . . . Recycling Units . | . . . Scanalyzers . | . . . Garrison Access . | . . . Terminal Hacks 2 | . 2 . Robot Analysis 1 | . 1 . Hauler Manifests 1 | . 1 . Fabricator Hacks . | . . . Repair Station Hacks . | . . . Recycling Unit Hacks . | . . . Scanalyzer . | . . . Garrison Access Hacks . | . . . Unauthorized Hacks . | . . . Terminals . | . . . Fabricators . | . . . Repair Stations . | . . . Recycling Units . | . . . Scanalyzers . | . . . Garrison Access . | . . . Data Cores Recovered . | . . . Used . | . . . Hacking Detections 3 | . 3 . Full Trace Events . | . . . Feedback Events . | . . . Feedback Blocked . | . . . Robot Schematics Acquired . | . . . Robots Built . | . . . Authchips . | . . . Time . | . . . Total Robot Build Rating . | . . . Part Schematics Acquired . | . . . Parts Built . | . . . Authchips . | . . . Time . | . . . Total Part Build Rating . | . . . Parts Repaired . | . . . Time . | . . . Parts Recycled . | . . . Recycled Matter . | . . . Retrieved Matter . | . . . Retrieved Components . | . . . Parts Scanalyzed . | . . . Part Schematics Acquired . | . . . Parts Damaged . | . . . Bothacking | -11 -10 -10 ------------ Run | Yrd Mat Sub Used RIF Installer . | . . . Robots Hacked . | . . . Non-combat . | . . . Combat . | . . . Robot Hacks Applied . | . . . Relay Couplers Released . | . . . Fabnet Peak Effective % . | . . . Robots Rewired . | . . . Allies Hacked . | . . . Hacks Repelled . | . . . Allies | -11 -10 -10 -------- Run | Yrd Mat Sub Total Allies . | . . . Largest Group . | . . . Highest-Rated Group . | . . . Highest-Rated Ally . | . . . Total Orders . | . . . Ally Attacks . | . . . Total Damage . | . . . Kills . | . . . Allies Corrupted . | . . . Allies Melted . | . . . Intel | -11 -10 -10 ------- Run | Yrd Mat Sub Robot Analysis Total 1 | . 1 . Derelict Logs Recovered . | . . . Drone Launches . | . . . Drone Recoveries . | . . . Exploration | -11 -10 -10 ------------- Run | Yrd Mat Sub Turns Passed 1500 | . 1059 441 Spaces Moved 871 | 1 665 205 Core 10 | . . 10 Treads . | . . . Legs 861 | 1 665 195 Wheels . | . . . Hover . | . . . Flight . | . . . Fastest Speed 120 | 120 120 120 Average Speed 149 | 120 136 191 Slowest Speed 300 | 120 190 300 Overloaded Moves . | . . . Propulsion Burnouts . | . . . Robots Hopped . | . . . Cave-ins Triggered . | . . . Exploration Rate (%) 33 | 2 86 12 Regions Visited 2 Branch Regions 1 Pre-discovered Areas . | . . . Known Exits Taken . | . . . Unknown Exits Taken 2 | 1 1 . Scrap Searched 1 | . . 1 Spaces Dug . | . . . Terrain Destroyed . | . . . Melee . | . . . Projectile . | . . . AOE . | . . . Terrain Rammed . | . . . Walls Destroyed . | . . . Machines Disabled . | . . . Actions | -11 -10 -10 --------- Run | Yrd Mat Sub Total 982 | . 750 232 Wait 6 | . 6 . Move 869 | . 664 205 Hop . | . . . Pick Up 19 | . 15 4 Fast Attach 5 | . 3 2 Attach 2 | . 2 . Detach 2 | . . 2 Swap 4 | . 4 . Drop 19 | . 15 4 Fire 54 | . 41 13 Melee . | . . . Ram . | . . . Kick 2 | . . 2 Crush . | . . . Escape Stasis . | . . . Rewire . | . . . Trap . | . . . Miscellaneous . | . . . Route ------- -11/Scrapyard -10/Materials (discovered 3 exits: [*Mat x2] / [*Sub]) -10/Subcaves History --------- Turn | Location | Event 1 | -11/Scrapyard | Discovered new exit (range 0) 1 | -11/Scrapyard | Entered Materials 305 | -10/Materials | Build established: Mutant 462 | -10/Materials | Discovered new exit (range 11) 837 | -10/Materials | Discovered new exit (range 3) 1052 | -10/Materials | Discovered new exit (range 8) 1060 | -10/Materials | Entered Subcaves 1074 | -10/Subcaves | Shifting Twisted Machinery released Mak. Hacking Suite 1197 | -10/Subcaves | Shifting Twisted Machinery released Battle Cannon 1476 | -10/Subcaves | Core integrity fell below 50% 1485 | -10/Subcaves | Core integrity fell below 20% 1501 | -10/Subcaves | Destroyed by 0G-48P(R) with Subdweller Laser Last Messages --------------- 01130_ Dropped Scrap Shield Fragment. 01130_ Acquired Scrap Shield Fragment. 01136_ Dropped Scrap Shield Fragment. 01136_ Acquired Scrap Shield Fragment. 01143_ Dropped Datajack. 01143_ Acquired Scrap Shield Fragment. 01144_ Subatomizers dissect the Sub. Optics. 01166_ Subatomizers dissect the Lgt. Assault Rifle, destroying it. Battle Cannon falls loose from the Twisted Machinery. 01237_ Searching scrap... 01237_ Found Sub. Beam Cannon. 01237_ Found 22 Matter. 01260_ Subatomizers dissect the Sub. Beam Cannon. 01475_ Kicked 0G-48P(R). 01477_ Kicked 0G-48P(R) out of the way. 01477_ Aluminum Leg destroyed. 01483_ Imp. Medium Laser destroyed. 01487_ Sub. Machine Gun destroyed. 01488_ Disposable Heat Sink destroyed. 01501_ Subatomizers dissect the Ion Engine. Map ----- +----------------------------------------------------+ | ]##????????????????????????????????????????? | | #%]#????????????????????????????????????????? | | ### ## ##????????????????????????????????????????? | | #?######?????????????????????????????????????????? | | ###??????????????????????????????????????????????? | | # #??????????????????????????????????????????????? | | #####??????????????????????????????????????????? | | #??????????????????????????????????????????? | | #??????????????????????????????????????????? | | ##??????????????????????????????????????????? | | ## #??????????????????????????????????????????? | | ?# #??????????????????????????????????????????? | | ?# ##?????###????##???? " ?????????????????????? | | ?## ######## #?### ##??""""?????????????????????? | | ?## ## # # ### ## " " ????????????????????? | | ?# " " "" ???????????????????? | | ?## """???????????????????? | | ?# ##### ### #? "#???????????????????? | | ?##????###?## ###### ="#???????????????????? | | ????????????### ##??## *%!????????????????????? | | ??????????????## ##??## #????????????????????? | | ??????????????# % #??# #??##????????????????? | | ??????????????## %#??# ## ##???????????????? | | ??????????????# %##### ##??????????????? | | ??????????????# ## #??????????????? | | ?????????????### ## @ *& ????????? | | ?????????????#""" ### ### % #??????????????? | | ?????????????# " ##R #?????? ##??????????????? | | ?????????????# RRR##???????????????????????? | | ????????????# ###????????????????????????? | | ????????????# #??????????????????????????? | | ????????????# ## #??????????????????????????? | | ????????????# ?## ??????????????????????????? | | ????????????# ??### ?????????????????????????? | | ???????????? ????## ?????????????????????????? | | ??????????? ??????# ????????????????????????? | | ??????????? ???????# ????????????????????????? | | ?????????? ????????? #????????????????????????? | | ????????????????????? #????????????????????????? | | ????????????????????? #????????????????????????? | | ????????????????????? ????????????????????????? | | ????????????????????? #????????????????????????? | | ????????????????????? ?????????????????????????? | | ????????????????????? ?????????????????????????? | | ?????????????????????????????????????????????????? | | ?????????????????????????????????????????????????? | | ?????????????????????????????????????????????????? | | ?????????????????????????????????????????????????? | | ?????????????????????????????????????????????????? | | ?????????????????????????????????????????????????? | +----------------------------------------------------+ Best States ------------- Heat Dissipation 25 Coolant Potential 50 Energy Generation 10 Energy Capacity 250 Matter Stores 300 Matter Capacity 300 Sight Range 16 Terrain Scan Range 14 Terrain Scan Density 10 Armor Coverage 150 Evasion (%) 55 Item Schematics ----------------- None Robot Schematics ------------------ None Fabricated ------------ Nothing Alien Tech Used ----------------- None Achievements -------------- None Challenges ------------ None Game ------ Seed ThrusterBurstModule Manual? 0 Play Time 00:12:25 Cumulative 119.1 hours Start 2024.04.18 @ 14:36:07 End 2024.04.18 @ 14:46:19 Sessions 1 Manual Loads 0 Difficulty Rogue Special Mode None Game No. 193 Rogue 189 Adventurer 0 Explorer 4 Win Type - Total 0 Types 0/0/0/0/0/0/0/0/0 Lore% 26 Gallery% 43 Achievement% 33 Wizard Run 0 Options --------- Layout 2 ASCII 0 Keyboard 1 Movement Arrows Keybinds 0 Fullscreen 1 Font 32/SmallcapsGlow Map View 130x44 Zoom Use 0% Tactical HUD 1 Map Filters NONE Filters NONE Steam 1 RUN: b324182a-2021-4de2-ad15-34cc0bcc5d80